Cogmind - Beta 16.1 @@@ ROGUE MODE // 2026.03.22 @ 03:17:27 Player: Ceorik Result: Destroyed by P-80 Master with Gamma Rifle Performance ------------- Evolutions (9) 4500 Regions Visited (24) 4800 Robots Destroyed (240) 1200 Value Destroyed (13443) 13443 Prototype IDs (7) 140 Alien Tech Used (0) 0 Bonus (9821) 9821 TOTAL SCORE: 33904 Bonus ------- High Alert Combat Kills 503 Follower Combat Kills 2868 Entered Garrisons 1200 Used RIF Installer 4000 Entered DSFs 500 Network Hubs Disabled 200 Built Enhanced Grunts 300 Met R17 at Cetus 500 Friendly Fire -250 Cogmind --------- Core Integrity 0/1600 Matter 208/300 Energy 99/100 System Corruption 4% Temperature Cool (0) Movement Core (50) Location -1/Access Parts ------- > --- POWER (2) -------- (None) > --- PROPULSION (8) --- (None) > --- UTILITY (12) ----- Advanced Terrain Scan Processor > --- WEAPON (3) ------- (None) > --- INVENTORY (5) ---- Light Quantum Reactor Advanced Reaction Control System Gamma Bomb Array Advanced Remote Datajack Improved Plasma Cutter Peak State ------------ > --- POWER ------------ Micro Antimatter Reactor Quantum Reactor > --- PROPULSION ------- Improved Antigrav System Improved Antigrav System Improved Antigrav System Combat Antigrav System Combat Antigrav System Combat Linear Gravjet > --- UTILITY ---------- Advanced Cryofiber Web Advanced Heat Sink Medium Storage Unit Advanced Terrain Scan Processor Improved Phase Shifter Layered Light Armor Plating Advanced Force Field Advanced Hacking Suite Advanced System Shield Advanced System Shield Relay Coupler [Grunt] Relay Coupler [Hunter] > --- WEAPON ----------- Force Lance Force Lance Force Lance > --- INVENTORY -------- Light Antimatter Reactor Micro Antimatter Reactor Light Quantum Reactor Combat Antigrav System Combat Antigrav System Combat Antigrav System Xenon Bombardment Thruster Gamma Bomb Array Advanced Datajack Improved Plasma Cutter [Rating: 153] Favorites ----------- Power Improved Deuterium Engine Engine Improved Deuterium Engine Power Core Neutrino Core Reactor Light Antimatter Reactor Propulsion Light Treads Treads Light Treads Leg Flexi-carbon Leg Wheel Wheel Hover Unit Combat Antigrav System Flight Unit Advanced Surge Thruster Utility High-capacity Storage Unit Device Advanced Heat Sink Storage High-capacity Storage Unit Processor Advanced Targeting Computer Hackware Relay Coupler [Sentry] Protection Improved Light Armor Plating Weapon Katana Energy Gun Enhanced Quantum Rifle Energy Cannon Heavy Particle Cannon Ballistic Gun Advanced KE Penetrator Ballistic Cannon Heavy Mass Driver Special Weapon Remote Datajack Impact Weapon Hammer Slashing Weapon Katana Piercing Weapon Force Lance Special Melee Weapon Advanced Datajack Build | -11 -10 -9 -9 -9 -8 -8 -8 -8 -7 -7 -6 -6 -6 -6 -6 -5 -5 -5 -4 -4 -3 -3 -2 -1 ------- Run | Yrd Mat Mat Sto Gar Mat Gar Mat Gar Fac Gar Fac Ext Cet Arc Hub Fac Gar Fac Fac Gar Res DSF Res Acc Slots Evolved 18 | . . 2 . . 2 . . . 2 . 2 . . . . 2 . . 2 . 2 . 2 2 Power 1 | . . . . . . . . . . . . . . . . . . . 1 . . . . . Propulsion 6 | . . . . . . . . . 1 . 1 . . . . . . . . . 1 . 1 2 Utility 10 | . . 2 . . 2 . . . 1 . . . . . . 2 . . 1 . 1 . 1 . Weapon 1 | . . . . . . . . . . . 1 . . . . . . . . . . . . . Parts Attached 311 | 7 10 14 2 15 7 18 9 11 . 26 4 14 11 9 1 10 23 17 . 48 1 9 43 2 Power 43 | 1 2 4 1 2 . 3 1 2 . 3 . 1 1 1 . 2 3 2 . 5 . 1 8 . Engine 18 | 1 2 4 1 2 . 3 . . . 2 . 1 . . . 1 1 . . . . . . . Core 11 | . . . . . . . 1 2 . 1 . . 1 . . . 2 2 . 2 . . . . Reactor 14 | . . . . . . . . . . . . . . 1 . 1 . . . 3 . 1 8 . Propulsion 85 | 3 3 3 . 2 2 1 3 3 . 6 1 1 3 . . . 9 4 . 16 . 5 20 . Treads 24 | 1 2 2 . 2 . 1 2 3 . 6 1 . 3 . . . . . . 1 . . . . Leg 18 | . . . . . . . . . . . . . . . . . 3 2 . 13 . . . . Wheel 8 | 2 1 1 . . 2 . 1 . . . . 1 . . . . . . . . . . . . Hover 16 | . . . . . . . . . . . . . . . . . . 2 . . . 5 9 . Flight 19 | . . . . . . . . . . . . . . . . . 6 . . 2 . . 11 . Utility 132 | 1 4 4 1 6 4 12 3 6 . 14 2 9 4 7 1 4 7 6 . 20 1 1 13 2 Device 34 | . 2 1 . 1 . 1 . 2 . 3 . 2 1 1 . . 2 3 . 7 1 . 6 1 Storage 7 | 1 2 . 1 . . . . . . . . . . 1 . . . 1 . 1 . . . . Processor 9 | . . . . 1 . . 1 . . . 1 . . . . . . 1 . 2 . . 2 1 Hackware 58 | . . 1 . 2 4 9 2 2 . 10 . 2 . 3 1 4 4 1 . 8 . 1 4 . Protection 24 | . . 2 . 2 . 2 . 2 . 1 1 5 3 2 . . 1 . . 2 . . 1 . Artifact . | . . . . . . . . . . . . . . . . . . . . . . . . . Weapon 51 | 2 1 3 . 5 1 2 2 . . 3 1 3 3 1 . 4 4 5 . 7 . 2 2 . Energy Gun 9 | . . . . . . . . . . 2 . . 1 . . . 1 . . 5 . . . . Energy Cannon 9 | . 1 1 . 3 . 1 1 . . . . . . . . 1 . . . 1 . . . . Ballistic Gun 7 | 2 . 1 . . . . . . . . . . 2 1 . 1 . . . . . . . . Ballistic Cannon 3 | . . . . . . . . . . . 1 1 . . . . 1 . . . . . . . Launcher . | . . . . . . . . . . . . . . . . . . . . . . . . . Special Weapon 5 | . . . . . 1 1 . . . . . . . . . 1 2 . . . . . . . Impact Weapon 1 | . . 1 . . . . . . . . . . . . . . . . . . . . . . Slashing Weapon 10 | . . . . 2 . . 1 . . . . 2 . . . . . 5 . . . . . . Piercing Weapon 4 | . . . . . . . . . . . . . . . . 1 . . . . . 2 1 . Special Melee Weapon 3 | . . . . . . . . . . 1 . . . . . . . . . 1 . . 1 . Unidentified Prototypes 7 | . . 1 1 . . . . . . 1 . . 3 . . . 1 . . . . . . . Corrupted Parts 1 | . . . . . . . . . . . . . 1 . . . . . . . . . . . System Corruption 5 | . . . . . . . . . . . . . 5 . . . . . . . . . . . Parts Lost 108 | . 1 6 . 1 . 5 2 6 . 7 . 3 1 . . 4 21 7 . 6 . 2 26 10 Power 18 | . . 2 . . . 1 1 1 . 1 . . . . . 2 2 2 . . . 1 4 1 Propulsion 36 | . 1 . . 1 . 2 . 2 . 2 . . 1 . . . 7 4 . 1 . . 9 6 Utility 36 | . . 2 . . . 1 . 1 . 3 . 3 . . . 1 7 1 . 2 . 1 11 3 Weapon 18 | . . 2 . . . 1 1 2 . 1 . . . . . 1 5 . . 3 . . 2 . Highest Loss Streak 11 | . 1 2 . 1 . 2 1 5 . 3 . 2 1 . . 2 8 5 . 2 . 2 11 10 To Critical Strikes 3 | . . 1 . . . . . . . . . . 1 . . . . . . . . . 1 . Average Backups 15 | 3 11 16 18 19 18 19 19 18 18 19 15 18 18 19 19 18 14 4 5 8 9 9 8 4 Power 1 | . 1 1 1 1 2 3 1 1 2 1 2 2 3 2 2 1 . . . . 1 1 1 . Propulsion 1 | 1 5 5 5 2 1 1 2 2 1 2 1 1 1 1 1 1 . . . 1 . . 2 . Utility 8 | . 1 3 8 10 11 11 12 13 14 13 11 12 13 14 15 12 10 1 1 2 5 3 . 1 Weapon 1 | . 1 5 4 3 3 2 2 1 1 1 . . . . . . . 1 3 2 1 3 1 1 Tool/Special . | . . . . . . . . . . . . . . . . . . . . . . . . . Unused Backups 67 | . 1 3 . 13 . 5 1 1 . 8 . 5 2 2 . 1 11 . . 2 1 3 5 3 Power 8 | . . . . . . 1 . . . 1 . . 1 1 . . . . . . 1 . 2 1 Propulsion 9 | . . . . . . . 1 1 . 1 . 4 1 . . . 1 . . . . . . . Utility 34 | . . . . 10 . 4 . . . 6 . 1 . 1 . . 8 . . 1 . 3 . . Weapon 10 | . . 3 . 3 . . . . . . . . . . . . . . . 1 . . 2 1 Tool/Special 6 | . 1 . . . . . . . . . . . . . . 1 2 . . . . . 1 1 Average Slot Usage (%) 88 | . 99 89 100 100 97 99 99 98 92 94 78 76 84 85 86 87 56 48 57 87 99 97 81 28 Engine 4 | . 14 10 11 11 9 8 7 . . 6 6 6 . . . 1 1 . . . . . . . Core 1 | . . . . . . . 1 9 7 . . . 5 3 . . 1 4 5 4 4 4 . . Reactor 1 | . . . . . . . . . . . . . . 2 6 3 . . . 4 4 3 6 2 Treads 9 | . 16 10 11 11 1 8 15 14 23 20 12 8 11 13 13 11 3 . . . . . . . Leg 3 | . . . . . . . . . . . . . . . . . 8 6 10 17 23 14 . . Wheel 3 | . 11 11 11 10 16 9 2 3 . . . 3 1 . . . . . . . . . . . Hover 1 | . . . . . . . . . . . . . . . . . . 1 . . . 8 20 5 Device 9 | . 13 18 11 11 9 9 9 9 7 8 6 5 6 7 6 5 3 10 15 12 13 9 9 . Storage 7 | . 14 11 11 11 9 9 9 9 7 7 6 6 6 6 6 5 3 4 5 5 4 4 3 . Processor 2 | . . . . 7 . . . . . . 4 6 6 1 . . . 2 5 6 4 4 2 8 Hackware 18 | . . 2 11 3 25 27 31 26 15 30 25 7 6 14 21 28 13 . . 16 23 28 21 2 Protection 6 | . . 4 11 11 9 8 3 9 15 3 . 13 20 15 10 10 2 . . 3 4 2 . . Energy Gun 1 | . . . . . . . . . . 6 . . 1 . . . 1 . . 8 9 1 . . Energy Cannon 3 | . 4 8 11 11 9 8 8 8 7 . . . . . . . . . . . . . . . Ballistic Gun 3 | . 23 4 . . . . . . . . . . 7 19 20 12 2 . . . . . . . Special Weapon 1 | . . . . . 8 4 5 . . . . . . . . 1 4 . . . . . . . Slashing Weapon 3 | . . . . 7 . 4 3 8 7 5 6 7 7 . . . . 11 15 . . . . . Peak Build Rating 153 | 6 10 18 18 27 35 35 35 36 34 59 77 79 99 109 110 124 105 46 46 112 110 117 153 77 Average Rating 58 | 5 8 13 17 22 33 33 32 33 34 43 75 71 86 106 109 117 52 36 46 92 109 109 119 45 On Entrance 55 | . 6 10 17 18 27 34 31 33 33 34 56 75 70 99 109 110 105 21 46 46 101 110 117 69 Avg Prop Armor Cover (%) 9 | 6 11 11 10 9 8 . 12 11 . . . 9 10 . . . . . . 10 . 7 8 7 Naked Turns 29 | . . . . . . . . . . . . . . . . . 9 . . 20 . . . . Heaviest Build 91 | 14 51 58 58 67 68 68 65 65 65 65 76 91 80 89 88 90 82 27 27 78 61 58 79 21 Greatest Support 160 | 20 10 20 10 10 26 40 40 40 60 95 150 150 160 160 160 160 160 43 43 95 105 105 96 32 Greatest Overweight (x) 6 | 1 5 5 5 6 6 2 3 4 1 1 . 3 2 . . . 2 3 . 3 . 1 3 1 Average Overweight (x) 1 | . 2 4 5 5 3 1 1 1 1 . . 1 . . . . . . . . . . . . Largest Inventory Capacity 20 | 8 20 20 20 20 20 20 20 20 20 20 20 20 20 20 20 20 20 10 10 10 10 10 10 5 Average Capacity 17 | 6 14 20 20 20 20 20 20 20 20 20 20 20 20 20 20 20 16 9 10 9 10 10 8 5 Most Carried 20 | 5 16 20 20 20 20 20 20 20 19 20 20 20 20 20 20 20 19 8 5 10 10 10 10 5 Average Carried 15 | 3 11 16 18 19 18 19 19 18 18 19 16 19 19 19 20 19 14 4 5 8 9 9 8 4 Final Capacity 20 | 8 20 20 20 20 20 20 20 20 20 20 20 20 20 20 20 20 5 10 10 10 10 10 5 5 Final Carried 20 | 5 16 19 18 20 19 20 20 19 19 20 17 20 20 20 20 19 5 5 5 10 10 10 5 5 Class Distribution -------------------- 35% | Botlord-Mutant 24% | Bothacker-Mutant 14% | Mutant 13% | Scavenger-Mutant 5% | Botlord-Tank 3% | Scavenger-Tank Dominant Class ---------------- Mutant | -10/Materials Mutant | -9/Materials Scavenger-Mutant | -9/Storage Bothacker-Mutant | -9/Garrison Bothacker-Mutant | -8/Materials Bothacker-Mutant | -8/Garrison Bothacker-Mutant | -8/Materials Scavenger-Mutant | -8/Garrison Botlord-Mutant | -7/Factory Botlord-Mutant | -7/Garrison Botlord-Mutant | -6/Factory Botlord-Mutant | -6/Extension Botlord-Mutant | -6/Cetus Botlord-Tank | -6/Archives Botlord-Tank | -6/Hub_04(d) Botlord-Mutant | -5/Factory Botlord-Mutant | -5/Garrison Mutant | -5/Factory Mutant | -4/Factory Botlord-Mutant | -4/Garrison Botlord-Mutant | -3/Research Botlord-Mutant | -3/DSF Botlord-Mutant | -2/Research Mutant | -1/Access Resources | -11 -10 -9 -9 -9 -8 -8 -8 -8 -7 -7 -6 -6 -6 -6 -6 -5 -5 -5 -4 -4 -3 -3 -2 -1 ----------- Run | Yrd Mat Mat Sto Gar Mat Gar Mat Gar Fac Gar Fac Ext Cet Arc Hub Fac Gar Fac Fac Gar Res DSF Res Acc Matter Collected 6386 | 294 527 148 38 215 105 355 200 267 . 492 61 837 201 150 136 404 485 159 . 694 . 100 518 . Remotely 98 | . . . . . . . . . . . . 98 . . . . . . . . . . . . Salvage Created 11223 | 75 648 698 234 815 188 819 667 543 . 765 165 1012 80 336 92 504 263 213 . 1689 . 93 1239 85 Parts 574 | 10 35 47 4 61 7 44 27 21 . 39 5 35 3 16 3 28 12 10 . 64 . 12 87 4 Haulers Intercepted 5 | . 2 2 . . . . . . . . . . . . 1 . . . . . . . . . Recyclers Shooed 7 | 1 2 1 . . . . . . . . . 3 . . . . . . . . . . . . Parts Field Recycled . | . . . . . . . . . . . . . . . . . . . . . . . . . Retrieved Matter . | . . . . . . . . . . . . . . . . . . . . . . . . . Parts Self-Destructed . | . . . . . . . . . . . . . . . . . . . . . . . . . Prevented . | . . . . . . . . . . . . . . . . . . . . . . . . . Parts Restored . | . . . . . . . . . . . . . . . . . . . . . . . . . Kills | -11 -10 -9 -9 -9 -8 -8 -8 -8 -7 -7 -6 -6 -6 -6 -6 -5 -5 -5 -4 -4 -3 -3 -2 -1 ------- Run | Yrd Mat Mat Sto Gar Mat Gar Mat Gar Fac Gar Fac Ext Cet Arc Hub Fac Gar Fac Fac Gar Res DSF Res Acc Combat Hostiles Destroyed 193 | . 9 18 4 20 2 19 12 11 . 11 1 14 1 2 . 10 8 2 . 25 . 2 21 1 Melee 60 | . . 2 4 2 . 8 5 2 . 6 . 1 . . . 2 2 2 . . . 2 21 1 Guns 40 | . 8 1 . . . . . . . 4 . . 1 2 . 7 3 . . 14 . . . . Cannons 86 | . 1 14 . 17 2 11 7 9 . . 1 13 . . . . 3 . . 8 . . . . Classes Destroyed 17 | 2 4 5 . 2 1 1 . . . . . . . . . 1 . . . . . 1 . . Worker 4 | 1 . 2 . . . . . . . . . . . . . 1 . . . . . . . . Builder 1 | . . . . . . . . . . . . . . . . 1 . . . . . . . . Tunneler 3 | 2 . 1 . . . . . . . . . . . . . . . . . . . . . . Hauler 5 | . 2 2 . . . . . . . . . . . . 1 . . . . . . . . . Recycler 10 | . 1 1 1 . . . 1 . . . 1 3 . . . . . 1 . . . . 1 . Mechanic 1 | . . 1 . . . . . . . . . . . . . . . . . . . . . . Operator 9 | . . 1 . . . . 1 . . . . 1 . 5 . . . . . . . . 1 . Watcher 8 | . 3 . . 1 1 . 1 . . 1 . . . . 1 . . . . . . . . . Swarmer 53 | . . 11 . 5 . 6 1 . . 3 . . . . . 4 3 . . 9 . 1 10 . Cutter 6 | . . . . . . . . . . . . . . . . . . . . . . 2 4 . Grunt 63 | . 9 4 3 7 1 6 8 7 . 3 . 3 . . . . 5 . . 6 . . . 1 Brawler 4 | . . . . . 1 . 1 . . . . . . . . . . . . 2 . . . . Duelist 4 | . . 1 . 1 . 1 . . . 1 . . . . . . . . . . . . . . Sentry 31 | . . 2 1 2 1 2 2 1 . 1 1 8 . 2 . 1 . . . 6 . . 1 . Specialist 4 | . . . . 3 . . . . . 1 . . . . . . . . . . . . . . Hunter 7 | . . . . . . 3 . 1 . . . 2 . . . . . . . 1 . . . . Programmer 26 | . . . . 2 . 3 . 2 . 2 . 1 . . . 5 . 2 . 2 . . 7 . Cetus Guard 1 | . . . . . . . . . . . . . 1 . . . . . . . . . . . Best Kill Streak 7 | 3 3 7 2 5 1 4 3 3 . 3 1 4 1 2 1 5 5 2 . 3 . 2 4 1 Combat Bots Only 7 | . 2 7 1 5 1 4 3 3 . 3 1 4 1 2 . 4 5 1 . 3 . 2 4 1 Max Kills in Single Turn 2 | 1 1 2 1 1 1 1 1 1 . 1 1 2 1 1 1 2 1 1 . 1 . 1 1 1 Gunslinging . | . . . . . . . . . . . . . . . . . . . . . . . . . Exploded . | . . . . . . . . . . . . . . . . . . . . . . . . . Melee 1 | . . 1 1 1 . 1 1 1 . 1 . 1 . . . 1 1 1 . . . 1 1 1 Uniques/NPCs Destroyed . | . . . . . . . . . . . . . . . . . . . . . . . . . Combat | -11 -10 -9 -9 -9 -8 -8 -8 -8 -7 -7 -6 -6 -6 -6 -6 -5 -5 -5 -4 -4 -3 -3 -2 -1 -------- Run | Yrd Mat Mat Sto Gar Mat Gar Mat Gar Fac Gar Fac Ext Cet Arc Hub Fac Gar Fac Fac Gar Res DSF Res Acc Hostile Shots Fired 2121 | . 72 100 18 60 5 102 50 125 . 182 11 323 24 . 53 145 197 48 . 184 . 37 231 154 Missed 655 | . 22 19 8 22 3 27 12 42 . 49 6 122 9 . 14 37 45 15 . 52 . 10 81 60 Hits 1466 | . 50 81 10 38 2 75 38 83 . 133 5 201 15 . 39 108 152 33 . 132 . 27 150 94 Melee 43 | . . 6 . 1 . . 1 . . 1 . . . . . . 6 . . . . 4 24 . Projectile 1423 | . 50 75 10 37 2 75 37 83 . 132 5 201 15 . 39 108 146 33 . 132 . 23 126 94 AOE 9 | . . . . . . . . . . 1 . . . . . . 2 . . . . 2 4 . Critical Strikes 88 | . 3 4 . . . 1 3 7 . 2 . 2 4 . 4 5 13 2 . 8 . 2 22 6 Part Disruptions 1 | . . . . . . . . . . . . . . . . . . . . . . . 1 . Damage Taken 23950 | . 643 894 141 486 30 985 593 1278 . 1680 47 1597 519 . 744 2113 2983 761 . 1908 . 618 3781 2149 Core 5488 | . 155 188 10 78 . 127 154 262 . 327 . 83 87 . 72 151 444 290 . 392 . 109 959 1600 Absorbed by Shields 1144 | . . . . . . . . . . . . 282 83 . . . . . . 654 . . 125 . Core Remaining (%) 49 | 100 38 . . 31 . . . 1 . 53 . . . . 71 . . 11 . 65 . 91 33 . Volleys Fired 668 | 5 62 51 . 49 13 79 50 57 . 22 1 52 19 14 4 32 54 . . 104 . . . . Largest 3 | 2 2 2 . 1 1 1 2 1 . 1 1 1 2 3 3 3 2 . . 2 . . . . Hottest 156 | 40 80 80 . 75 75 75 150 75 . 85 65 65 104 103 103 116 75 . . 156 . . . . Shots Fired 876 | 10 124 58 1 49 13 79 53 57 . 24 1 52 23 41 12 59 61 . . 159 . . . . Gun 437 | 10 122 7 . . . . . . . 22 . . 13 41 12 55 31 . . 124 . . . . Cannon 379 | . 2 51 1 49 6 60 37 49 . 2 1 52 10 . . 1 23 . . 35 . . . . Launcher . | . . . . . . . . . . . . . . . . . . . . . . . . . Special 60 | . . . . . 7 19 16 8 . . . . . . . 3 7 . . . . . . . Kinetic 357 | 10 122 7 . . . . . . . . 1 52 19 41 12 55 38 . . . . . . . Thermal 448 | . 2 51 1 39 6 60 37 49 . 24 . . 4 . . . 16 . . 159 . . . . Explosive . | . . . . . . . . . . . . . . . . . . . . . . . . . Electromagnetic 11 | . . . . 10 . . . . . . . . . . . 1 . . . . . . . . Robot Hit Streak 22 | 7 11 13 . 10 16 17 22 12 . 15 1 6 7 8 4 11 6 . . 22 . . . . Robot Miss Streak 6 | 1 6 4 . 3 . 3 2 4 . 3 . 2 2 1 4 3 2 . . 3 . . . . Penetration Max 1 | . . . . . . . . . . . . 1 1 1 . 1 . . . . . . . . Secondary Targets 4 | . 2 . . . . . . . . . . . . . . . . . . 2 . . . . Max Gunslinging Chain 1 | . 1 . . . . . . . . . . . . . . . . . . 1 . . . . Shots Hit Robots 880 | 8 77 52 8 37 13 61 60 51 . 79 2 91 18 27 5 43 45 14 . 116 1 6 62 4 Core Hits 341 | 3 28 23 3 20 4 25 19 14 . 25 2 20 12 15 4 16 16 4 . 53 . 3 30 2 Critical Kills 8 | . . 1 1 . . . . . . . . . 1 1 1 2 . . . 1 . . . . Critical Parts Destroyed 10 | . . 1 2 . . . . . . . . . . 2 . 5 . . . . . . . . Critical Strikes 64 | . . 2 3 . . 3 2 3 . 9 . 12 1 3 1 9 . 3 . 2 . . 11 . Burn 1 | . . . . . . . . . . 1 . . . . . . . . . . . . . . Meltdown 1 | . . . . . . . . . . . . . . . . . . . . 1 . . . . Destroy 12 | . . . . . . . . . . . . . 1 3 1 7 . . . . . . . . Blast 7 | . . . . . . . . . . . . 7 . . . . . . . . . . . . Smash 5 | . . 2 3 . . . . . . . . . . . . . . . . . . . . . Sever 25 | . . . . . . 3 2 3 . 8 . 5 . . . . . 3 . 1 . . . . Impale 13 | . . . . . . . . . . . . . . . . 2 . . . . . . 11 . Melee Attacks 435 | . . 16 14 19 . 33 14 20 . 76 1 54 . . . 10 14 23 . 18 1 10 105 7 Impact 38 | . . 16 14 8 . . . . . . . . . . . . . . . . . . . . Slashing 176 | . . . . 11 . 33 14 20 . 53 1 19 . . . . . 23 . 2 . . . . Piercing 132 | . . . . . . . . . . . . . . . . 10 14 . . . . 5 96 7 Sneak Attacks 70 | . . 4 1 1 . 1 3 1 . 7 1 37 . . . 1 . 1 . 5 1 1 5 . Combat Hostiles 1 | . . . . . . . 1 . . . . . . . . . . . . . . . . . Follow-up Attacks 22 | . . . . . . . . . . . . 3 . . . . . 6 . . . . 13 . Damage Inflicted 24582 | 105 967 1189 216 895 152 1326 1462 1369 . 2494 122 3496 517 817 224 1364 1227 493 . 3365 . 159 2391 232 Guns 6781 | 105 950 28 . . . . . . . 399 . . 266 817 183 1197 375 . . 2461 . . . . Cannons 8723 | . 17 661 . 766 152 801 927 993 . 50 62 2651 251 . . . 565 . . 827 . . . . Explosions . | . . . . . . . . . . . . . . . . . . . . . . . . . Melee 9037 | . . 500 216 129 . 525 535 376 . 2045 60 845 . . . 167 287 493 . 77 . 159 2391 232 Ramming 41 | . . . . . . . . . . . . . . . 41 . . . . . . . . . Kinetic 7217 | 105 950 28 . . . . . . . . 62 2651 440 817 183 1197 784 . . . . . . . Thermal 8120 | . 17 661 . 599 152 801 927 993 . 449 . . 77 . . . 156 . . 3288 . . . . Explosive . | . . . . . . . . . . . . . . . . . . . . . . . . . Electromagnetic 167 | . . . . 167 . . . . . . . . . . . . . . . . . . . . Impact 809 | . . 500 216 93 . . . . . . . . . . . . . . . . . . . . Slashing 4992 | . . . . 36 . 525 535 376 . 2045 60 845 . . . . . 493 . 77 . . . . Piercing 3236 | . . . . . . . . . . . . . . . . 167 287 . . . . 159 2391 232 Highest Corruption 19 | . . 1 2 5 . 1 1 1 . 1 . . 5 5 2 12 12 19 . . . . 10 4 Average Corruption 4 | . . 1 2 3 . 1 1 1 . 1 . . 5 4 1 5 12 17 . . . . 6 2 Corruption Purged 5 | . . . . . . . . . . . . . . 5 . . . . . . . . . . Corruption Blocked 6 | . . . . . . . . . . . . . . . . . . . . . . . 1 5 Effects 178 | . . 2 5 25 . 2 4 13 . 13 . . 2 5 . 25 37 25 . . . . 20 . Message Errors 50 | . . 1 1 7 . 1 . 4 . 4 . . 1 2 . 7 8 8 . . . . 6 . Matter Fused 46 | . . 1 . 4 . . . 4 . 5 . . . 2 . 6 11 6 . . . . 7 . Heat Flow Errors 14 | . . . 2 2 . . 1 2 . . . . . . . 3 2 1 . . . . 1 . Energy Discharges 23 | . . . 1 5 . . 1 . . 2 . . 1 . . 3 4 3 . . . . 3 . Parts Rejected 4 | . . . . . . . . 1 . . . . . . . . 3 . . . . . . . Parts Fused 4 | . . . . 1 . . . . . . . . . 1 . 1 1 . . . . . . . Data Loss (minor) 16 | . . . . 4 . . 1 . . . . . . . . 2 2 6 . . . . 1 . Data Loss (major) 7 | . . . . 2 . 1 . 2 . . . . . . . 1 1 . . . . . . . Misfires 4 | . . . 1 . . . . . . 2 . . . . . . 1 . . . . . . . Alerts 5 | . . . . . . . 1 . . . . . . . . . 2 . . . . . 2 . Misdirections 1 | . . . . . . . . . . . . . . . . . . 1 . . . . . . Weapon Failures 4 | . . . . . . . . . . . . . . . . 2 2 . . . . . . . Overload Shots . | . . . . . . . . . . . . . . . . . . . . . . . . . Overflow Damage 881 | . . 62 60 . . 13 57 12 . 90 . 164 . . . . . 28 . . . . 395 . Projectiles 198 | . . 1 . . . 13 39 9 . . . 136 . . . . . . . . . . . . Explosions . | . . . . . . . . . . . . . . . . . . . . . . . . . Melee 683 | . . 61 60 . . . 18 3 . 90 . 28 . . . . . 28 . . . . 395 . Knockbacks 10 | . . 2 1 . . . . . . . . 5 . . . . 2 . . . . . . . Impact 3 | . . 2 1 . . . . . . . . . . . . . . . . . . . . . Kinetic 6 | . . . . . . . . . . . . 4 . . . . 2 . . . . . . . Secondary 1 | . . . . . . . . . . . . 1 . . . . . . . . . . . . Self-Inflicted Damage . | . . . . . . . . . . . . . . . . . . . . . . . . . Shots . | . . . . . . . . . . . . . . . . . . . . . . . . . Rammed 8 | . . . . . . . . . . . . . . . 8 . . . . . . . . . Targets Rammed 9 | . . . . . . . . . . . . . . . 9 . . . . . . . . . Kicked . | . . . . . . . . . . . . . . . . . . . . . . . . . Crushed 1 | . . . . . . . . . . . . . . . 1 . . . . . . . . . Highest Temperature 283 | . 27 255 233 133 16 72 136 283 . 24 . 138 11 . . 193 253 . . 67 . . . . Average Temperature 45 | . 8 83 94 25 8 15 54 73 . 9 . 55 6 . . 90 57 . . 25 . . . . Received Heat Transfer 5007 | . 420 120 63 45 9 270 351 486 . 420 12 399 98 . 123 63 1300 . . 351 . 63 144 270 Effects 1 | . . 1 . . . . . . . . . . . . . . . . . . . . . . Energy Bleed 1 | . . 1 . . . . . . . . . . . . . . . . . . . . . . Siege Activations . | . . . . . . . . . . . . . . . . . . . . . . . . . Martial Activations . | . . . . . . . . . . . . . . . . . . . . . . . . . Shielding Activations . | . . . . . . . . . . . . . . . . . . . . . . . . . Robots Disrupted . | . . . . . . . . . . . . . . . . . . . . . . . . . Combat Hostiles . | . . . . . . . . . . . . . . . . . . . . . . . . . Robots Corrupted 5 | . . 3 1 1 . . . . . . . . . . . . . . . . . . . . Combat Hostiles 2 | . . 1 . 1 . . . . . . . . . . . . . . . . . . . . Parts Fried 11 | . . 9 1 1 . . . . . . . . . . . . . . . . . . . . Impact Corruptions 9 | . . 6 3 . . . . . . . . . . . . . . . . . . . . . Robots Melted 4 | . . . . . . . . . . 1 . . . . . . . . . 3 . . . . Combat Hostiles 4 | . . . . . . . . . . 1 . . . . . . . . . 3 . . . . Parts Melted 26 | . . 1 . 2 . 2 4 3 . 1 . . . . . 2 . . . 11 . . . . Heat Transferred 12028 | . 37 1332 . 962 222 1107 1295 1369 . 1049 . . 148 . . . 350 . . 4157 . . . . Parts Sabotaged . | . . . . . . . . . . . . . . . . . . . . . . . . . Parts Stolen . | . . . . . . . . . . . . . . . . . . . . . . . . . Parts Stripped . | . . . . . . . . . . . . . . . . . . . . . . . . . Power Chain Reactions . | . . . . . . . . . . . . . . . . . . . . . . . . . Alert | -11 -10 -9 -9 -9 -8 -8 -8 -8 -7 -7 -6 -6 -6 -6 -6 -5 -5 -5 -4 -4 -3 -3 -2 -1 ------- Run | Yrd Mat Mat Sto Gar Mat Gar Mat Gar Fac Gar Fac Ext Cet Arc Hub Fac Gar Fac Fac Gar Res DSF Res Acc Maximum Alert Level 4 | . . 1 . 3 2 3 1 . . 2 1 1 1 . . . . . . 4 2 2 1 . Low Security (%) 59 | 100 100 72 100 13 70 25 81 100 100 26 46 95 69 100 100 100 100 100 100 13 . . 77 100 Level 1 17 | . . 27 . 20 17 26 18 . . 32 53 4 30 . . . . . . 33 . . 22 . Level 2 17 | . . . . 38 11 44 . . . 41 . . . . . . . . . 24 100 100 . . Level 3 5 | . . . . 27 . 2 . . . . . . . . . . . . . 22 . . . . Level 4 . | . . . . . . . . . . . . . . . . . . . . 5 . . . . Level 5 . | . . . . . . . . . . . . . . . . . . . . . . . . . High Security . | . . . . . . . . . . . . . . . . . . . . . . . . . Max Security . | . . . . . . . . . . . . . . . . . . . . . . . . . Sterilizations 1 | . . . . . . . . . . . . . . . . . . . . . . 1 . . Peak Influence 1123 | 5 100 259 30 850 414 720 351 168 88 644 338 204 247 170 189 195 146 28 . 1123 631 506 284 70 Initial 631 | . 3 . . 13 414 27 351 . 88 47 338 37 96 66 . 20 49 14 . . 631 428 284 15 Average 236 | 1 36 146 7 509 167 384 67 108 78 345 210 65 175 98 80 57 90 3 . 513 601 471 117 22 Influence Increases 9056 | 15 305 515 130 867 83 943 264 268 . 827 81 766 369 223 311 455 328 80 . 1343 . 198 553 132 Destroy 0b10 Robot/C 4335 | . 180 360 80 420 40 375 195 165 . 390 45 420 165 60 75 210 135 30 . 540 . 120 315 15 Destroy 0b10 Robot/NC 240 | 15 30 40 5 5 5 . 12 . . 16 8 24 8 24 16 12 . 4 . 8 . . 8 . Destroy Leader 514 | . 60 74 10 20 12 . 34 16 . 24 8 66 8 . 28 42 8 8 . 24 . 8 64 . Allied During Kill 720 | . . . . 3 1 8 1 . . 60 16 127 181 84 118 11 4 . . 55 . 42 9 . Trap Triggered on 0b10 8 | . . . . . . . . . . . . . . . . . . . . 8 . . . . Successful Hack 243 | . 18 10 5 14 10 11 7 . . 17 4 28 . . . 21 11 26 . . . . 25 36 Select Force Hacks 38 | . . . . . . . . . . . . . . . 38 . . . . . . . . . Disable Machine 348 | . . . 30 . 15 75 . 24 . . . 24 . 48 24 12 12 12 . 72 . . . . Anti-Garrison Action 1620 | . . . . 300 . 377 . 38 . 264 . . . . . 113 38 . . 490 . . . . Destroy Structure 348 | . 2 1 . 60 . 85 3 13 . 20 . 17 7 7 12 34 12 . . 50 . 4 12 9 Partial Spotted 132 | . . . . . . . . . . . . . . . . . 12 . . . . 12 60 48 Lose Combat Pursuer 510 | . 15 30 . 45 . 12 12 12 . 36 . 60 . . . . 96 . . 96 . 12 60 24 Influence Decreases 9030 | 10 310 515 110 37 891 265 984 100 100 251 648 671 376 388 269 427 371 107 . 220 552 263 1033 132 Entered New Map 2375 | . 2 . . 7 436 15 369 . 80 21 306 40 76 99 . 22 21 13 . . 492 143 222 11 Time Decay 3294 | 10 298 233 110 . 160 . 268 . 20 . 262 449 190 229 89 364 . 84 . . 60 . 408 60 Lost Part 881 | . 10 60 . 10 . 50 7 60 . 70 . 10 10 . . 40 210 10 . 40 . 20 213 61 Lost Ally 1513 | . . . . 20 20 200 20 40 . 160 80 172 100 60 180 1 140 . . 180 . 100 40 . Purge Threat 967 | . . 222 . . 275 . 320 . . . . . . . . . . . . . . . 150 . Squads Dispatched 32 | . 2 2 . . 1 . 2 . . . . 6 1 . 1 5 . 3 . . . 2 6 1 Investigation 6 | . 1 . . . . . . . . . . 3 1 . 1 . . . . . . . . . Extermination 9 | . . . . . . . . . . . . . . . . 3 . 1 . . . . 4 1 Reinforcement 13 | . 1 2 . . 1 . 2 . . . . 3 . . . . . . . . . 2 2 . Assault 4 | . . . . . . . . . . . . . . . . 2 . 2 . . . . . . Garrison . | . . . . . . . . . . . . . . . . . . . . . . . . . Intercept . | . . . . . . . . . . . . . . . . . . . . . . . . . Searches Triggered . | . . . . . . . . . . . . . . . . . . . . . . . . . Construction Impeded . | . . . . . . . . . . . . . . . . . . . . . . . . . Haulers Reinforced . | . . . . . . . . . . . . . . . . . . . . . . . . . Active Scanning Responses . | . . . . . . . . . . . . . . . . . . . . . . . . . Cargo Convoy Interrupts . | . . . . . . . . . . . . . . . . . . . . . . . . . Stealth | -11 -10 -9 -9 -9 -8 -8 -8 -8 -7 -7 -6 -6 -6 -6 -6 -5 -5 -5 -4 -4 -3 -3 -2 -1 --------- Run | Yrd Mat Mat Sto Gar Mat Gar Mat Gar Fac Gar Fac Ext Cet Arc Hub Fac Gar Fac Fac Gar Res DSF Res Acc Distress Signals 19 | . . 3 . . 2 . 1 . . . 1 4 2 . 1 1 . . . . . . 4 . Communications Jammed 76 | . . . . . 2 . 34 . . 21 . . . . . 19 . . . . . . . . Distress Signals 75 | . . . . . 1 . 34 . . 21 . . . . . 19 . . . . . . . . Times Spotted 435 | . 16 23 4 20 7 36 20 16 . 39 5 37 12 14 15 18 26 4 . 48 . 13 47 15 Peak Tracking Total 14 | . 3 7 2 5 3 6 3 4 . 8 4 5 5 2 14 7 8 2 . 7 . 7 8 11 Tactical Retreats 28 | . 1 2 . 2 . 1 1 1 . 1 . 4 . . . . 4 . . 4 . 1 5 1 Traps | -11 -10 -9 -9 -9 -8 -8 -8 -8 -7 -7 -6 -6 -6 -6 -6 -5 -5 -5 -4 -4 -3 -3 -2 -1 ------- Run | Yrd Mat Mat Sto Gar Mat Gar Mat Gar Fac Gar Fac Ext Cet Arc Hub Fac Gar Fac Fac Gar Res DSF Res Acc Traps Triggered 26 | . 1 . 1 1 . 4 . 4 . 2 . 1 . . . 1 3 . . 7 . . . 1 Indirectly . | . . . . . . . . . . . . . . . . . . . . . . . . . Trap Hack Attempts 10 | . . . . . . . . . . . . . . . . . . . . 10 . . . . Triggered . | . . . . . . . . . . . . . . . . . . . . . . . . . Disarmed . | . . . . . . . . . . . . . . . . . . . . . . . . . Reprogrammed 1 | . . . . . . . . . . . . . . . . . . . . 1 . . . . Reused 1 | . . . . . . . . . . . . . . . . . . . . 1 . . . . Traps Extracted . | . . . . . . . . . . . . . . . . . . . . . . . . . Installed . | . . . . . . . . . . . . . . . . . . . . . . . . . Triggered 1 | . . . . . . . . . . . . . . . . . . . . 1 . . . . Machines | -11 -10 -9 -9 -9 -8 -8 -8 -8 -7 -7 -6 -6 -6 -6 -6 -5 -5 -5 -4 -4 -3 -3 -2 -1 ---------- Run | Yrd Mat Mat Sto Gar Mat Gar Mat Gar Fac Gar Fac Ext Cet Arc Hub Fac Gar Fac Fac Gar Res DSF Res Acc Machines Disabled 48 | . 1 . 2 4 1 10 . 3 . 3 . 2 . 4 2 2 2 1 . 11 . . . . Max in Single Turn 1 | . 1 . 1 1 . 1 . 1 . 1 . . . 1 1 1 1 1 . 1 . . . . Garrison Access 2 | . . . . . . . . . . . . . . . . 1 . 1 . . . . . . Garrison Relay 18 | . . . . 4 . 4 . 1 . 3 . . . . . . 1 . . 5 . . . . Network Hub 1 | . . . . . . . . . . . . . . . 1 . . . . . . . . . Machines Repaired . | . . . . . . . . . . . . . . . . . . . . . . . . . Machines Dismantled 2 | . . . . . . . . . . . . . . . . . 1 . . 1 . . . . Machines Sabotaged 1 | . . . . . . . . . . . . . . . 1 . . . . . . . . . Overloaded Fab Kills . | . . . . . . . . . . . . . . . . . . . . . . . . . Hacking | -11 -10 -9 -9 -9 -8 -8 -8 -8 -7 -7 -6 -6 -6 -6 -6 -5 -5 -5 -4 -4 -3 -3 -2 -1 --------- Run | Yrd Mat Mat Sto Gar Mat Gar Mat Gar Fac Gar Fac Ext Cet Arc Hub Fac Gar Fac Fac Gar Res DSF Res Acc Machines Accessed 76 | . 9 3 3 2 5 4 5 2 1 3 3 13 1 . 2 4 1 3 1 2 1 . 5 3 Terminals 64 | . 8 3 2 2 3 4 4 2 . 3 3 12 1 . 2 2 1 2 . 2 1 . 4 3 Fabricators . | . . . . . . . . . . . . . . . . . . . . . . . . . Repair Stations . | . . . . . . . . . . . . . . . . . . . . . . . . . Recycling Units 3 | . 1 . . . . . . . . . . 1 . . . . . 1 . . . . . . Scanalyzers 3 | . . . . . 1 . . . . . . . . . . 1 . . . . . . 1 . Garrison Access 6 | . . . 1 . 1 . 1 . 1 . . . . . . 1 . . 1 . . . . . Total Hacks 191 | . 25 13 6 6 19 8 12 4 1 4 9 28 2 . 2 9 5 4 1 7 2 . 15 9 Successful 87 | . 14 7 5 2 11 2 6 . 1 2 3 11 . . 2 5 1 4 1 . 1 . 5 4 Failed 104 | . 11 6 1 4 8 6 6 4 . 2 6 17 2 . . 4 4 . . 7 1 . 10 5 Catastrophic 12 | . . . . 1 1 1 . . . 1 1 1 1 . . . 1 . . 1 . . 2 1 Database Lockouts . | . . . . . . . . . . . . . . . . . . . . . . . . . Manual 79 | . 14 12 5 2 12 . 5 . . . 5 6 1 . 2 4 . 1 . . . . 6 4 Terminals 173 | . 24 13 5 6 15 8 11 4 . 4 9 27 2 . 2 5 5 3 . 7 2 . 12 9 Fabricators . | . . . . . . . . . . . . . . . . . . . . . . . . . Repair Stations . | . . . . . . . . . . . . . . . . . . . . . . . . . Recycling Units 3 | . 1 . . . . . . . . . . 1 . . . . . 1 . . . . . . Scanalyzers 9 | . . . . . 3 . . . . . . . . . . 3 . . . . . . 3 . Garrison Access 6 | . . . 1 . 1 . 1 . 1 . . . . . . 1 . . 1 . . . . . Terminal Hacks 45 | . 5 4 2 2 4 2 2 . . 2 2 8 . . 1 . 1 2 . . 1 . 4 3 Record 1 | . . . . . . . . . . . . . . . . . . . . . . . . 1 Robot Analysis 1 | . . . . . 1 . . . . . . . . . . . . . . . . . . . Open Door 8 | . . . . . . . . . . 1 . 7 . . . . . . . . . . . . Open DSF 3 | . . . . . . . . . . . . . . . . . . 1 . . 1 . 1 . Level Access Points 2 | . . . . . . . . . . . . . . . 1 . . 1 . . . . . . Branch Access Points 4 | . . 1 1 . . . . . . . 1 . . . . . . . . . . . 1 . Emergency Access Points 3 | . 1 . . . . 1 . . . 1 . . . . . . . . . . . . . . Terminal Index 1 | . . . . . . . . . . . . . . . . . . . . . . . . 1 Unreport Threat 5 | . . 3 . . . . 1 . . . . . . . . . . . . . . . 1 . Locate Traps 8 | . 2 . 1 . 2 . 1 . . . 1 1 . . . . . . . . . . . . Recall Reinforcements 1 | . . . . . 1 . . . . . . . . . . . . . . . . . . . Zone Layout 4 | . 2 . . . . . . . . . . . . . . . . . . . . . 1 1 Garrison Registry 2 | . . . . 1 . . . . . . . . . . . . 1 . . . . . . . Patrol Navigation 2 | . . . . 1 . 1 . . . . . . . . . . . . . . . . . . Fabricator Hacks . | . . . . . . . . . . . . . . . . . . . . . . . . . Repair Station Hacks . | . . . . . . . . . . . . . . . . . . . . . . . . . Recycling Unit Hacks 2 | . 1 . . . . . . . . . . . . . . . . 1 . . . . . . Retrieve Components 2 | . 1 . . . . . . . . . . . . . . . . 1 . . . . . . Scanalyzer 6 | . . . . . 3 . . . . . . . . . . 2 . . . . . . 1 . Retrieve Study 6 | . . . . . 3 . . . . . . . . . . 2 . . . . . . 1 . Garrison Access Hacks 6 | . . . 1 . 1 . 1 . 1 . . . . . . 1 . . 1 . . . . . Unlock Access 6 | . . . 1 . 1 . 1 . 1 . . . . . . 1 . . 1 . . . . . Unauthorized Hacks 28 | . 8 3 2 . 3 . 3 . . . 1 3 . . 1 2 . 1 . . . . . 1 Terminals 28 | . 8 3 2 . 3 . 3 . . . 1 3 . . 1 2 . 1 . . . . . 1 Botnet 27 | . 8 3 2 . 3 . 3 . . . 1 3 . . . 2 . 1 . . . . . 1 Sabotage 1 | . . . . . . . . . . . . . . . 1 . . . . . . . . . Fabricators . | . . . . . . . . . . . . . . . . . . . . . . . . . Repair Stations . | . . . . . . . . . . . . . . . . . . . . . . . . . Recycling Units . | . . . . . . . . . . . . . . . . . . . . . . . . . Scanalyzers . | . . . . . . . . . . . . . . . . . . . . . . . . . Garrison Access . | . . . . . . . . . . . . . . . . . . . . . . . . . Data Cores Recovered 2 | . . . . . . . 1 . . . . . . . . . . . . . . . 1 . Used . | . . . . . . . . . . . . . . . . . . . . . . . . . Hacking Detections 58 | . 9 3 2 2 5 3 4 2 . 2 3 8 1 . 1 4 . 1 . 2 . . 4 2 Full Trace Events 5 | . . 1 . . . . . . . . . 3 1 . . . . . . . . . . . Feedback Events 1 | . . 1 . . . . . . . . . . . . . . . . . . . . . . Corruption 1 | . . 1 . . . . . . . . . . . . . . . . . . . . . . Feedback Blocked . | . . . . . . . . . . . . . . . . . . . . . . . . . Robot Schematics Acquired . | . . . . . . . . . . . . . . . . . . . . . . . . . Robots Built . | . . . . . . . . . . . . . . . . . . . . . . . . . Authchips . | . . . . . . . . . . . . . . . . . . . . . . . . . Time . | . . . . . . . . . . . . . . . . . . . . . . . . . Total Robot Build Rating . | . . . . . . . . . . . . . . . . . . . . . . . . . Part Schematics Acquired . | . . . . . . . . . . . . . . . . . . . . . . . . . Parts Built . | . . . . . . . . . . . . . . . . . . . . . . . . . Authchips . | . . . . . . . . . . . . . . . . . . . . . . . . . Time . | . . . . . . . . . . . . . . . . . . . . . . . . . Total Part Build Rating . | . . . . . . . . . . . . . . . . . . . . . . . . . Part Studies Acquired 6 | . . . . . 3 . . . . . . . . . . 2 . . . . . . 1 . Parts Repaired . | . . . . . . . . . . . . . . . . . . . . . . . . . Time . | . . . . . . . . . . . . . . . . . . . . . . . . . Parts Recycled . | . . . . . . . . . . . . . . . . . . . . . . . . . Recycled Matter . | . . . . . . . . . . . . . . . . . . . . . . . . . Retrieved Matter . | . . . . . . . . . . . . . . . . . . . . . . . . . Retrieved Components 11 | . 9 . . . . . . . . . . . . . . . . 2 . . . . . . Parts Scanalyzed . | . . . . . . . . . . . . . . . . . . . . . . . . . Part Schematics Acquired . | . . . . . . . . . . . . . . . . . . . . . . . . . Parts Damaged . | . . . . . . . . . . . . . . . . . . . . . . . . . Bothacking | -11 -10 -9 -9 -9 -8 -8 -8 -8 -7 -7 -6 -6 -6 -6 -6 -5 -5 -5 -4 -4 -3 -3 -2 -1 ------------ Run | Yrd Mat Mat Sto Gar Mat Gar Mat Gar Fac Gar Fac Ext Cet Arc Hub Fac Gar Fac Fac Gar Res DSF Res Acc Used RIF Installer 8 | . . . . 2 . 1 . 1 . 1 . . . . . . 2 . . 1 . . . . Code Merge 2 | . . . . . . . . . . 1 . . . . . . 1 . . . . . . . Command Fork 1 | . . . . . . . . 1 . . . . . . . . . . . . . . . . Threat Obfuscator 1 | . . . . . . 1 . . . . . . . . . . . . . . . . . . Signal Jammer 1 | . . . . 1 . . . . . . . . . . . . . . . . . . . . Autooverride 1 | . . . . . . . . . . . . . . . . . 1 . . . . . . . Autoassimilate 1 | . . . . . . . . . . . . . . . . . . . . 1 . . . . Robots Hacked 73 | . . . . . 5 14 8 4 . 12 . 3 . . . 3 6 . . 6 1 6 5 . Non-combat 13 | . . . . . 2 . 6 . . . . 2 . . . 2 . . . . 1 . . . Combat 60 | . . . . . 3 14 2 4 . 12 . 1 . . . 1 6 . . 6 . 6 5 . Autooverrided 4 | . . . . . . . . . . . . . . . . . 2 . . . . 1 1 . Autoassimilated 2 | . . . . . . . . . . . . . . . . . . . . . . 2 . . Robot Hacks Applied 74 | . . . . . 7 14 12 4 . 13 . 3 . . . 3 4 . . 6 1 3 4 . parse_system 1 | . . . . . . . 1 . . . . . . . . . . . . . . . . . purge_threat 4 | . . . . . 2 . 2 . . . . . . . . . . . . . . . . . find_terminals 1 | . . . . . . . 1 . . . . . . . . . . . . . . . . . locate_traps 1 | . . . . . . . 1 . . . . . . . . . . . . . . . . . block_reporting 1 | . . . . . . . 1 . . . . . . . . . . . . . . . . . map_route 3 | . . . . . . . 2 . . . . . . . . 1 . . . . . . . . mark_security 1 | . . . . . 1 . . . . . . . . . . . . . . . . . . . find_shortcuts 1 | . . . . . . . . . . . . . . . . . . . . . . . 1 . find_garrison 2 | . . . . . 1 . 1 . . . . . . . . . . . . . . . . . link_fov 2 | . . . . . . . 1 . . . . . . . . . . . . . 1 . . . focus_fire 1 | . . . . . . . . . . 1 . . . . . . . . . . . . . . amplify_resonance 1 | . . . . . . 1 . . . . . . . . . . . . . . . . . . wipe_record 1 | . . . . . . . . . . . . . . . . . . . . 1 . . . . overwrite_iff 29 | . . . . . 1 12 2 3 . 5 . . . . . . 1 . . 1 . 1 3 . formatsys_low 3 | . . . . . . . . . . . . 2 . . . 1 . . . . . . . . formatsys_high 22 | . . . . . 2 1 . 1 . 7 . 1 . . . 1 3 . . 4 . 2 . . Relay Couplers Released 78 | . . . . 16 . 14 . 5 . 16 . . . . . 2 4 3 . 18 . . . . Machine Destruction 74 | . . . . 16 . 14 . 5 . 12 . . . . . 2 4 3 . 18 . . . . Programmers 4 | . . . . . . . . . . 4 . . . . . . . . . . . . . . Attached 45 | . . . . 1 3 9 2 2 . 10 . 1 . . . 3 4 . . 8 . 1 1 . Merged Code Value 113 | . . . . . . . . . . 32 . 3 . . . . . . . 66 . 12 . . Fabnet Peak Effective % . | . . . . . . . . . . . . . . . . . . . . . . . . . Robots Rewired 23 | . . . . . . . . . . 3 . 15 . . . . . . . 5 . . . . Allies Hacked 1 | . . . . . . . . . . 1 . . . . . . . . . . . . . . Hacks Repelled 1 | . . . . . . . . . . . . . . . . . . . . . . . 1 . Allies | -11 -10 -9 -9 -9 -8 -8 -8 -8 -7 -7 -6 -6 -6 -6 -6 -5 -5 -5 -4 -4 -3 -3 -2 -1 -------- Run | Yrd Mat Mat Sto Gar Mat Gar Mat Gar Fac Gar Fac Ext Cet Arc Hub Fac Gar Fac Fac Gar Res DSF Res Acc Total Allies 104 | . . . . 1 3 13 2 4 . 17 . 26 5 . . 2 8 . . 12 . 6 5 . Largest Group 15 | . . . . 1 2 2 1 2 . 5 5 15 14 14 10 2 4 . . 3 2 4 3 . Highest-Rated Group 810 | . . . . 20 25 36 15 50 . 129 127 569 810 810 490 63 116 . . 168 89 274 107 . Highest-Rated Ally 159 | . . . . 20 16 21 15 29 . 43 39 159 159 159 96 49 42 . . 56 51 142 47 . Total Orders 27 | . . . . . 2 3 . 1 . 6 2 1 . 2 . . . . . 8 . 1 1 . STAY 16 | . . . . . 1 2 . 1 . 3 1 1 . 1 . . . . . 4 . 1 1 . FOLLOW 11 | . . . . . 1 1 . . . 3 1 . . 1 . . . . . 4 . . . . Ally Attacks 520 | . . . . 2 7 42 4 11 . 74 16 100 65 15 48 13 22 . . 51 . 40 10 . Total Damage 12405 | . . . . 49 125 440 31 120 . 1803 338 2442 1399 482 1056 353 492 . . 1998 . 1140 137 . Kills 88 | . . . . 1 . 5 1 . . 15 3 16 12 3 8 5 2 . . 11 . 6 . . Allies Corrupted 6 | . . . . . . . . . . . . 1 . . 5 . . . . . . . . . Allies Melted 3 | . . . . . . . . 1 . 1 . 1 . . . . . . . . . . . . Intel | -11 -10 -9 -9 -9 -8 -8 -8 -8 -7 -7 -6 -6 -6 -6 -6 -5 -5 -5 -4 -4 -3 -3 -2 -1 ------- Run | Yrd Mat Mat Sto Gar Mat Gar Mat Gar Fac Gar Fac Ext Cet Arc Hub Fac Gar Fac Fac Gar Res DSF Res Acc Active Infowar (turns) 1568 | . 705 444 . . . . . . . . . . . . . . . 273 17 2 127 . . . Sensors 292 | . . . . . . . . . . . . . . . . . . 273 17 2 . . . . Seismic 1149 | . 705 444 . . . . . . . . . . . . . . . . . . . . . . ECM 127 | . . . . . . . . . . . . . . . . . . . . . 127 . . . Robot Analysis Total 1 | . . . . . 1 . . . . . . . . . . . . . . . . . . . Derelict Logs Recovered . | . . . . . . . . . . . . . . . . . . . . . . . . . Drone Launches . | . . . . . . . . . . . . . . . . . . . . . . . . . Drone Recoveries . | . . . . . . . . . . . . . . . . . . . . . . . . . Exploration | -11 -10 -9 -9 -9 -8 -8 -8 -8 -7 -7 -6 -6 -6 -6 -6 -5 -5 -5 -4 -4 -3 -3 -2 -1 ------------- Run | Yrd Mat Mat Sto Gar Mat Gar Mat Gar Fac Gar Fac Ext Cet Arc Hub Fac Gar Fac Fac Gar Res DSF Res Acc Turns Passed 20052 | 105 1042 582 339 1553 335 2155 917 1178 58 2074 562 1398 384 483 181 1278 807 604 17 2377 134 232 1116 141 Spaces Moved 11064 | 56 592 249 166 798 203 1028 369 478 28 984 317 637 171 94 85 684 404 531 13 1348 66 130 1249 384 Core 180 | 1 . . . . . . . . . . . . . . . . 21 2 . 70 . . . 86 Treads 3661 | 33 . . . . . 466 201 305 28 984 317 268 144 94 85 684 51 . . 1 . . . . Legs 1763 | . . . . . . . . . . . . . . . . . 208 234 13 1170 66 72 . . Wheels 3329 | 22 592 249 166 798 203 562 168 173 . . . 369 27 . . . . . . . . . . . Hover 1157 | . . . . . . . . . . . . . . . . . . 111 . . . 58 980 8 Flight 974 | . . . . . . . . . . . . . . . . . 124 184 . 107 . . 269 290 Fastest Speed 16 | 50 95 110 155 155 120 120 145 145 200 160 160 130 130 160 160 160 21 24 130 32 120 68 16 16 Average Speed 129 | 132 123 148 155 164 131 156 174 180 200 164 160 145 155 160 160 160 112 84 130 117 120 98 47 29 Slowest Speed 274 | 160 155 155 155 170 170 240 200 200 200 200 160 160 160 160 160 160 260 200 130 200 120 190 274 77 Overloaded Moves 44 | . . . . . . . . . . . . . . . . . 30 14 . . . . . . Propulsion Burnouts . | . . . . . . . . . . . . . . . . . . . . . . . . . Robots Hopped 13 | . . . . . . . . . . . . . . . . . 1 . . . . . 11 1 Potential Cave-ins . | . . . . . . . . . . . . . . . . . . . . . . . . . Cave-ins Triggered . | . . . . . . . . . . . . . . . . . . . . . . . . . Exploration Rate (%) 40 | 3 93 36 30 66 25 96 37 40 1 71 8 71 56 75 15 17 35 10 1 86 3 88 28 15 Regions Visited 24 Branch Regions 5 Pre-discovered Areas . | . . . . . . . . . . . . . . . . . . . . . . . . . Known Exits Taken 11 | . . 1 1 . 1 . 1 . 1 . 1 . . . 1 1 . 1 1 . 1 . . . Unknown Exits Taken 6 | 1 1 . . . . . . . . . . 1 1 1 . . . . . . . . 1 . Scrap Searched . | . . . . . . . . . . . . . . . . . . . . . . . . . Spaces Dug 8 | . . . . . . . . 1 . . . . . . . 1 . . . . . . 3 3 Terrain Destroyed 64 | . . . . . . . 2 1 . . . 19 3 10 3 16 2 . . 2 . . 3 3 Melee 8 | . . . . . . . . 1 . . . . . . . 1 . . . . . . 3 3 Projectile 56 | . . . . . . . 2 . . . . 19 3 10 3 15 2 . . 2 . . . . AOE . | . . . . . . . . . . . . . . . . . . . . . . . . . Terrain Rammed . | . . . . . . . . . . . . . . . . . . . . . . . . . Walls Destroyed . | . . . . . . . . . . . . . . . . . . . . . . . . . Machines Disabled . | . . . . . . . . . . . . . . . . . . . . . . . . . Actions | -11 -10 -9 -9 -9 -8 -8 -8 -8 -7 -7 -6 -6 -6 -6 -6 -5 -5 -5 -4 -4 -3 -3 -2 -1 --------- Run | Yrd Mat Mat Sto Gar Mat Gar Mat Gar Fac Gar Fac Ext Cet Arc Hub Fac Gar Fac Fac Gar Res DSF Res Acc Total 15379 | 73 776 374 223 971 261 1451 570 707 30 1336 369 1004 271 400 115 798 667 653 13 1984 122 228 1585 398 Wait 2232 | . 89 24 37 23 33 227 113 107 . 142 43 204 57 269 17 41 135 74 . 333 51 65 148 . Move 11022 | 55 591 248 166 797 203 1027 369 477 28 983 316 636 170 93 84 684 401 530 13 1347 65 129 1228 382 Hop 11 | . . . . . . . . . . . . . . . . . 1 . . . . . 9 1 Pick Up 207 | 5 13 11 1 24 3 22 5 8 1 20 1 12 2 4 . 10 17 9 . 17 2 3 16 1 Fast Attach 173 | 6 1 6 1 6 2 2 1 1 . 8 2 8 6 4 . 2 26 9 . 30 1 8 41 2 Attach 84 | . 1 5 . 1 2 5 2 7 1 6 2 3 1 . . 6 6 9 . 13 1 . 11 2 Detach 20 | . . . . . . 1 . . . . . 1 1 . . . 1 1 . 7 . 2 5 1 Swap 181 | 1 14 5 1 12 3 21 12 12 . 32 . 17 4 5 1 7 . . . 21 . 1 12 . Drop 231 | 1 5 8 3 32 2 14 4 4 . 30 3 12 11 11 . 6 4 4 . 35 1 10 29 2 Fire 668 | 5 62 51 . 49 13 79 50 57 . 22 1 52 19 14 4 32 54 . . 104 . . . . Melee 407 | . . 16 14 19 . 33 14 20 . 76 1 51 . . . 10 14 17 . 18 1 10 86 7 Ram . | . . . . . . . . . . . . . . . . . . . . . . . . . Kick . | . . . . . . . . . . . . . . . . . . . . . . . . . Crush 9 | . . . . . . . . . . . . . . . 9 . . . . . . . . . Escape Stasis 61 | . . . . 8 . 20 . 14 . . . 8 . . . . 5 . . 6 . . . . Rewire 52 | . . . . . . . . . . 17 . . . . . . . . . 35 . . . . Trap 10 | . . . . . . . . . . . . . . . . . . . . 10 . . . . Miscellaneous 11 | . . . . . . . . . . . . . . . . . 3 . . 8 . . . . Route ------- -11/Scrapyard -10/Materials (discovered 5 exits: *Mat x3 / [*Min] / [*Sub]) -9/Materials (discovered 4 exits: *Mat / *Min / *Sto x2) -9/Storage (discovered 2 exits: *Rec / Gar) -9/Garrison (discovered 3 exits: *Mat x3) -8/Materials (discovered 2 exits: *Fac / Gar) -8/Garrison (discovered 4 exits: *Fac x3 / *Mat) -8/Materials (discovered 2 exits: *Fac / Gar) -8/Garrison -7/Factory -7/Garrison (discovered 4 exits: *Fac x3 / [*Fac]) -6/Factory (discovered 4 exits: Low x2 / *Ext x2) -6/Extension (discovered 2 exits: *Fac / *Cet) -6/Cetus (discovered 2 exits: *Fac / [*Arc]) -6/Archives (discovered 3 exits: *Fac / *Hub x2) -6/Hub_04(d) (discovered 4 exits: *Fac x4) -5/Factory (discovered 4 exits: *Fac / [*Upp x2] / Gar) -5/Garrison (discovered 3 exits: *Fac x3) -5/Factory (discovered 4 exits: *Fac x4) -4/Factory -4/Garrison (discovered 3 exits: *Res x3) -3/Research -3/DSF -2/Research (discovered 3 exits: *Acc / *Qua x2) -1/Access History --------- Turn | Location | Event 19 | -11/Scrapyard | Discovered new exit (range 15) 106 | -11/Scrapyard | Entered Materials 306 | -10/Materials | Build established: Mutant 308 | -10/Materials | Discovered new exit (range 17) 328 | -10/Materials | Discovered new exit (range 10) 507 | -10/Materials | Core integrity fell below 50% 865 | -10/Materials | Discovered new exit (range 12) 993 | -10/Materials | Discovered new exit (range 15) 1130 | -10/Materials | Discovered new exit (range 3) 1148 | -10/Materials | Entered another Materials area 1148 | -9/Materials | Evolved 2 slots: Utility x2 1300 | -9/Materials | Destroyed 7 combat bots 1379 | -9/Materials | Discovered new exit (range 6) 1440 | -9/Materials | Discovered new exit (range 16) 1517 | -9/Materials | Discovered new exit (range 5) 1630 | -9/Materials | Identified exit to Mines 1630 | -9/Materials | Identified exit to Storage 1730 | -9/Materials | Entered Storage 1746 | -9/Storage | Identified exit to Recycling 1860 | -9/Storage | Build established: Scavenger-Mutant 2024 | -9/Storage | Used back door to open Recycling access 2069 | -9/Storage | Identified exit to Garrison 2069 | -9/Storage | Entered Garrison 2100 | -9/Garrison | Discovered new exit (range 45) 2100 | -9/Garrison | Discovered new exit (range 85) 2100 | -9/Garrison | Discovered new exit (range 63) 2192 | -9/Garrison | Triggered checkpoint 2231 | -9/Garrison | Garrison Relay disabled 2249 | -9/Garrison | Garrison Relay disabled 2261 | -9/Garrison | Triggered checkpoint 2278 | -9/Garrison | Core integrity fell below 50% 2391 | -9/Garrison | Triggered checkpoint 2431 | -9/Garrison | Build established: Mutant 2565 | -9/Garrison | Triggered checkpoint 2767 | -9/Garrison | Installed Relay Interface Framework 2894 | -9/Garrison | Rescued a captive Derelict 2896 | -9/Garrison | Rescued a captive Derelict 2916 | -9/Garrison | Expanded RIF knowledge: Signal Jamming 2949 | -9/Garrison | Build established: Scavenger-Mutant 3035 | -9/Garrison | Garrison Relay disabled 3248 | -9/Garrison | Garrison Relay disabled 3251 | -9/Garrison | Triggered checkpoint 3344 | -9/Garrison | Build established: Bothacker-Mutant 3622 | -9/Garrison | Entered Materials 3622 | -8/Materials | Evolved 2 slots: Utility x2 3888 | -8/Materials | Discovered new exit (range 9) 3957 | -8/Materials | Identified exit to Garrison 3957 | -8/Materials | Entered Garrison 3957 | -8/Garrison | Accompanied by 1 ally 3988 | -8/Garrison | Triggered checkpoint 4150 | -8/Garrison | Expanded RIF knowledge: Threat Obfuscation 4181 | -8/Garrison | Garrison Relay disabled 4284 | -8/Garrison | Triggered checkpoint 4319 | -8/Garrison | Triggered checkpoint 4373 | -8/Garrison | Triggered checkpoint 4421 | -8/Garrison | Lost 3 allies 4473 | -8/Garrison | Triggered checkpoint 4505 | -8/Garrison | Discovered new exit (range 11) 4585 | -8/Garrison | Triggered checkpoint 4615 | -8/Garrison | Garrison Relay disabled 4890 | -8/Garrison | Triggered checkpoint 4902 | -8/Garrison | Garrison Relay disabled 4945 | -8/Garrison | Discovered new exit (range 10) 5054 | -8/Garrison | Triggered checkpoint 5207 | -8/Garrison | Triggered checkpoint 5402 | -8/Garrison | Discovered new exit (range 10) 5480 | -8/Garrison | Garrison Relay disabled 5495 | -8/Garrison | Triggered checkpoint 5568 | -8/Garrison | Discovered new exit (range 6) 6112 | -8/Garrison | Entered Materials 6756 | -8/Materials | Core integrity fell below 50% 6872 | -8/Materials | Discovered new exit (range 15) 7029 | -8/Materials | Identified exit to Garrison 7029 | -8/Materials | Entered Garrison 7154 | -8/Garrison | Triggered checkpoint 7200 | -8/Garrison | Garrison Relay disabled 7395 | -8/Garrison | Triggered checkpoint 7455 | -8/Garrison | Triggered checkpoint 7515 | -8/Garrison | Core integrity fell below 20% 7535 | -8/Garrison | Lost 5 parts (1p2n1u1w) 7723 | -8/Garrison | Build established: Scavenger-Mutant 7976 | -8/Garrison | Discovered new exit (range 12) 8047 | -8/Garrison | Triggered checkpoint 8139 | -8/Garrison | Expanded RIF knowledge: Command Fork 8207 | -8/Garrison | Entered Factory 8207 | -7/Factory | Evolved 2 slots: Propulsion x1, Utility x1 8265 | -7/Factory | Identified exit to Garrison 8265 | -7/Factory | Entered Garrison 8343 | -7/Garrison | Triggered checkpoint 8456 | -7/Garrison | Lost 3 parts (1p1n1w) 8522 | -7/Garrison | Build established: Botlord-Mutant 8528 | -7/Garrison | Garrison Relay disabled 8776 | -7/Garrison | Triggered checkpoint 9060 | -7/Garrison | Discovered new exit (range 8) 9074 | -7/Garrison | Expanded RIF knowledge: Code Merge 9089 | -7/Garrison | Triggered checkpoint 9121 | -7/Garrison | Garrison Relay disabled 9510 | -7/Garrison | Discovered new exit (range 14) 9521 | -7/Garrison | Triggered checkpoint 9575 | -7/Garrison | Lost 3 allies 9604 | -7/Garrison | Discovered new exit (range 5) 9693 | -7/Garrison | Triggered checkpoint 9832 | -7/Garrison | Garrison Relay disabled 9879 | -7/Garrison | Triggered checkpoint 10091 | -7/Garrison | Triggered checkpoint 10171 | -7/Garrison | Triggered checkpoint 10319 | -7/Garrison | Discovered new exit (range 3) 10339 | -7/Garrison | Entered Factory 10339 | -6/Factory | Accompanied by 5 allies 10339 | -6/Factory | Evolved 2 slots: Propulsion x1, Weapon x1 10599 | -6/Factory | Identified exit to Lower Caves 10599 | -6/Factory | Identified exit to Extension 10901 | -6/Factory | Entered Extension 10901 | -6/Extension | Accompanied by 1 ally 11111 | -6/Extension | Rescued a captive Derelict 11209 | -6/Extension | Rescued a captive Derelict 11417 | -6/Extension | Spotted B-75 Beast 11436 | -6/Extension | Rescued a captive Derelict 11471 | -6/Extension | Assimilated Beast 5a with formatsys_high 11668 | -6/Extension | Spotted B-75 Beast 11693 | -6/Extension | Allies destroyed B-75 Beast 11745 | -6/Extension | Rescued a captive Derelict 11745 | -6/Extension | Rescued a captive Derelict 11826 | -6/Extension | Lost 3 allies 11864 | -6/Extension | Rescued A7 12109 | -6/Extension | Rescued a captive Derelict 12110 | -6/Extension | Rescued a captive Derelict 12134 | -6/Extension | Rescued a captive Derelict 12165 | -6/Extension | Discovered new exit (range 10) 12166 | -6/Extension | Discovered new exit (range 6) 12299 | -6/Extension | Entered Cetus 12299 | -6/Cetus | Accompanied by 14 allies (A7) 12304 | -6/Cetus | Acquired a Cetus Manufacturing Module code from A7 12316 | -6/Cetus | Spotted Cetus Guard 12316 | -6/Cetus | Spotted Cetus Guard 12319 | -6/Cetus | Spotted Cetus Guard 12319 | -6/Cetus | Spotted Cetus Guard 12326 | -6/Cetus | Allies destroyed Cetus Guard 12327 | -6/Cetus | Allies destroyed Cetus Guard 12340 | -6/Cetus | Allies destroyed Cetus Guard 12347 | -6/Cetus | Allies destroyed Cetus Guard 12413 | -6/Cetus | Started Cetus Manufacturing Module 12438 | -6/Cetus | Manufactured an Enhanced Grunt 12450 | -6/Cetus | Discovered new exit (range 16) 12463 | -6/Cetus | Manufactured an Enhanced Grunt 12488 | -6/Cetus | Manufactured an Enhanced Grunt 12492 | -6/Cetus | Spotted Cetus Guard 12492 | -6/Cetus | Spotted Cetus Guard 12496 | -6/Cetus | Spotted Cetus Guard 12497 | -6/Cetus | Allies destroyed Cetus Guard 12499 | -6/Cetus | Spotted Cetus Guard 12499 | -6/Cetus | Destroyed Cetus Guard 12510 | -6/Cetus | Allies destroyed Cetus Guard 12510 | -6/Cetus | Allies destroyed Cetus Guard 12513 | -6/Cetus | Manufactured an Enhanced Grunt 12521 | -6/Cetus | Discovered new exit (range 16) 12529 | -6/Cetus | Met Revision 17 12538 | -6/Cetus | Manufactured an Enhanced Grunt 12683 | -6/Cetus | Entered Archives 12683 | -6/Archives | Accompanied by 14 allies (A7) 12736 | -6/Archives | Discovered new exit (range 15) 12744 | -6/Archives | Lost 3 allies 12811 | -6/Archives | Discovered new exit (range 16) 12954 | -6/Archives | Discovered new exit (range 16) 13000 | -6/Archives | Build established: Botlord-Tank 13166 | -6/Archives | Entered Hub_04(d) 13166 | -6/Hub_04(d) | Accompanied by 10 allies 13288 | -6/Hub_04(d) | Network Hub disabled 13310 | -6/Hub_04(d) | Spotted Lightning 13315 | -6/Hub_04(d) | Spotted Lightning 13317 | -6/Hub_04(d) | Spotted Lightning 13319 | -6/Hub_04(d) | Spotted Lightning 13331 | -6/Hub_04(d) | Spotted Lightning 13331 | -6/Hub_04(d) | Spotted Lightning 13331 | -6/Hub_04(d) | Identified exit to Factory 13340 | -6/Hub_04(d) | Spotted Lightning 13343 | -6/Hub_04(d) | Spotted Lightning 13347 | -6/Hub_04(d) | Entered Factory 13347 | -5/Factory | Evolved 2 slots: Utility x2 13360 | -5/Factory | Lost 9 allies 13635 | -5/Factory | Discovered new exit (range 10) 13687 | -5/Factory | Build established: Scavenger-Tank 14003 | -5/Factory | Discovered new exit (range 15) 14256 | -5/Factory | System corruption reached 10% 14281 | -5/Factory | Spotted B-75 Beast 14295 | -5/Factory | Build established: Botlord-Mutant 14313 | -5/Factory | Discovered new exit (range 50) 14625 | -5/Factory | Identified exit to Garrison 14625 | -5/Factory | Entered Garrison 14655 | -5/Garrison | Triggered checkpoint 14800 | -5/Garrison | Lost 5 parts (4u1w) 14838 | -5/Garrison | Triggered checkpoint 14872 | -5/Garrison | Released all parts (6) 14894 | -5/Garrison | Released all parts (2) 14905 | -5/Garrison | Discovered new exit (range 64) 14905 | -5/Garrison | Discovered new exit (range 79) 14905 | -5/Garrison | Discovered new exit (range 45) 14927 | -5/Garrison | Lost 8 parts (1p3n1u3w) 14940 | -5/Garrison | Garrison Relay disabled 15168 | -5/Garrison | Expanded RIF knowledge: Autooverride 15251 | -5/Garrison | Triggered checkpoint 15256 | -5/Garrison | Triggered checkpoint 15313 | -5/Garrison | Lost 3 parts (1p2u) 15316 | -5/Garrison | Lost 8 allies 15407 | -5/Garrison | Core integrity fell below 50% 15409 | -5/Garrison | Released all parts (4) 15426 | -5/Garrison | Expanded RIF knowledge: Code Merge 15432 | -5/Garrison | Entered Factory 15437 | -5/Factory | Lost 4 parts (3n1w) 15554 | -5/Factory | Core integrity fell below 20% 15586 | -5/Factory | Lost 5 parts (1p3n1u) 15789 | -5/Factory | Identified exit to Factory 15822 | -5/Factory | Build established: Mutant 16036 | -5/Factory | Entered another Factory area 16036 | -4/Factory | Evolved 2 slots: Power x1, Utility x1 16053 | -4/Factory | Identified exit to Garrison 16053 | -4/Factory | Entered Garrison 16097 | -4/Garrison | Released all parts (8) 16111 | -4/Garrison | Triggered checkpoint 16118 | -4/Garrison | Garrison Relay disabled 16318 | -4/Garrison | Found Gamma Bomb Array 16367 | -4/Garrison | Triggered checkpoint 16495 | -4/Garrison | Triggered checkpoint 16624 | -4/Garrison | Expanded RIF knowledge: Autoassimilate 16949 | -4/Garrison | Triggered checkpoint 16970 | -4/Garrison | Triggered checkpoint 16978 | -4/Garrison | Triggered checkpoint 17190 | -4/Garrison | Build established: Scavenger-Mutant 17287 | -4/Garrison | Discovered new exit (range 9) 17335 | -4/Garrison | Triggered checkpoint 17384 | -4/Garrison | Garrison Relay disabled 17511 | -4/Garrison | Discovered new exit (range 15) 17679 | -4/Garrison | Triggered checkpoint 17719 | -4/Garrison | Garrison Relay disabled 17788 | -4/Garrison | Discovered new exit (range 9) 18011 | -4/Garrison | Build established: Botlord-Mutant 18011 | -4/Garrison | Triggered checkpoint 18128 | -4/Garrison | Garrison Relay disabled 18234 | -4/Garrison | Triggered checkpoint 18259 | -4/Garrison | Garrison Relay disabled 18430 | -4/Garrison | Entered Research 18430 | -3/Research | Accompanied by 2 allies 18430 | -3/Research | Evolved 2 slots: Propulsion x1, Utility x1 18563 | -3/Research | Identified exit to DSF 18564 | -3/Research | Entered DSF 18564 | -3/DSF | Accompanied by 2 allies 18603 | -3/DSF | Additional patrols routed to DSF 18709 | -3/DSF | Sterilization system engaged 18719 | -3/DSF | Lost 5 allies 18724 | -3/DSF | Discovered new exit (range 14) 18729 | -3/DSF | Ambient heat levels rising (+10) 18744 | -3/DSF | Ambient heat levels rising (+10) 18759 | -3/DSF | Ambient heat levels rising (+10) 18774 | -3/DSF | Ambient heat levels rising (+10) 18789 | -3/DSF | Ambient heat levels rising (+10) 18796 | -3/DSF | Entered Research 18796 | -2/Research | Accompanied by 1 ally 18796 | -2/Research | Evolved 2 slots: Propulsion x1, Utility x1 19194 | -2/Research | Lost 4 parts (1p2n1u) 19441 | -2/Research | Identified exit to Quarantine 19554 | -2/Research | Spotted B-90 Cyclops 19613 | -2/Research | P-80 Master assimilated allied H-88 Terminator 19656 | -2/Research | System corruption reached 10% 19680 | -2/Research | Lost 11 parts (2p4n5u) 19714 | -2/Research | Core integrity fell below 50% 19791 | -2/Research | Lost 6 parts (1p1n3u1w) 19906 | -2/Research | Discovered new exit (range 15) 19912 | -2/Research | Entered Access 19912 | -1/Access | Evolved 2 slots: Propulsion x2 19948 | -1/Access | Watched by a mysterious "MATRIX" hacker. 20026 | -1/Access | Core integrity fell below 50% 20047 | -1/Access | Core integrity fell below 20% 20052 | -1/Access | Lost 10 parts (1p6n3u) 20053 | -1/Access | Destroyed by P-80 Master with Gamma Rifle Last Messages --------------- 20006_ Cmb. Antigrav System destroyed. 20006_ Imp. Corruption Screen intercepted 1% system corruption. 20007_ G-73 Enforcer destroyed. 20010_ Dropped Force Lance+. 20010_ Imp. Corruption Screen intercepted 1% system corruption. 20011_ Slug penetrates Wall. 20013_ ALERT: Potential suspicious activity detected, Programmers report to Access Zone 7Q. 20014_ Slug penetrates Wall. 20021_ Door malfunctions. 20021_ Imp. Corruption Screen destroyed. 20033_ P-80 Master resets P-80 Master, system corruption cleaned. 20035_ Triggered Hellfire Trap. 20035_ An explosion rips through the floor. 20040_ The unstable cave ceiling collapses. 20048_ Critical hit (Burn: +37). Map ----- +----------------------------------------------------+ | ????????????????????????????????????????????#????? | | ????????????????????????????????????????????#????? | | ????????????????????????????????????????????#????? | | ????????????????????????????????????????????#????? | | ????????????????????????????????????###########??? | | ????????????????????????????????????# ! ] #??? | | ????????????????????????????????????# #??? | | ????????????????????????????????????# #??? | | ???????????????????????H????????????# ##?? | | ????????????????????????????????????# #### | | ????????????????????????????????????#########/# | | ???????????????????????????????????+ + | | ??????????????????????????????????????#### # | | ?????????????????????????????????????????# # | | ?????????????????????????#########???????# %+ | | ????????????????????????? ???????# =# | | ?????????????????????????? ????????# # | | ??????????????????????????! ??????? # | | ??????????????????????????? ???????### #### | | ??????????????????????????? ?????????# #### | | ???????????????????????????? ??????????# | | ???????????????????????????? ??????????# ? | | ??????????????????###########+############ | | ??????????????????# | | ??????????????????# ########## | | ??????????????????# @R #????????? | | ??????????????????# R #????????? | | ??????????????????# #????????? | | ??????????????????# #????????? | | ??????????????????# k p #??????### | | ??????????????????# ####### pg #???? | | ??????????????????# #?????# #?? | | ??????????????????# #?????# A # "" | | ??????????????????# #?????# + "" | | ??????????????????# ??????# # "" | | ??????????????????# ??????# #?? S | | ??????????????????# ??????# #???? "" | | ??????????????????# t ??????# #?????? "" | | ??????????????????# ??????# #????????" | | ????????????????????? ??????# #????????? | | ??????????????????????? ??????# #????????? | | ????????????????????????????????# #????????? | | ????????????????????????????????# #????????? | | ????????????????????????????????# ###+###### | | ????????????????????????????????# ^ | | ????????????????????????????????# ^ | | ????????????????????????????????# | | ????????????????????????????????# | | ????????????????????????????????# | | ????????????????????????????????# | +----------------------------------------------------+ Best States ------------- Heat Dissipation 90 Energy Generation 41 Energy Capacity 400 Matter Stores 450 Matter Capacity 450 Sight Range 16 Robot Scan Range 15 Terrain Scan Density 210 ECM Strength 2 Base Temperature (-) 200 Corruption Block 15 Armor Coverage 900 Phase Shifting 15 Evasion (%) 68 Targeting Accuracy 8 Target Analysis 6 Recoil Reduction 4 Offensive Hacking 36 Defensive Hacking 28 Relay Coupler Types 6 Relay Coupler Value 203 Authchip Count 4 Item Schematics ----------------- None Robot Schematics ------------------ None Fabricated ------------ Nothing Repaired ---------- Nothing Studied --------- Hvy. Particle Cannon | -8/Materials | Hacked EM Pulse Cannon | -8/Materials | Hacked Lgt. Treads | -8/Materials | Hacked KE Penetrator | -5/Factory | Hacked Imp. Heavy Treads | -5/Factory | Hacked Force Lance | -2/Research | Hacked Alien Tech Used ----------------- None Achievements -------------- Hackathon Challenges ------------ None Game ------ Seed TrackerTerrainField Manual? 0 Play Time 03:13:56 Cumulative 147.5 hours Start 2026.03.22 @ 00:00:52 End 2026.03.22 @ 03:17:27 Sessions 1 Manual Loads 0 Difficulty Rogue Special Mode None Game No. 121 Rogue 121 Adventurer 0 Explorer 0 Win Type - Total 2 Types 2/0/0/0/0/0/0/0/0/0 Lore% 71 Gallery% 59 Achievement% 51 Wizard Run 0 Options --------- Layout 2 ASCII 0 Keyboard 0 Movement Mouse Keybinds 0 Fullscreen 1 Font 24/Smallcaps Map View 50x44 Zoom Use 0% Tactical HUD 1 Map Filters NONE Filters NONE Steam 1 RUN: dccbe1ee-a80d-4621-bcb3-05ff153319b8